[Event "Norwegian Championship Elite 2022"]
[Site "Kongsvinger"]
[Date "2022.07.09"]
[Round "2.3"]
[White "Elsness, Frode"]
[Black "Hauge, Lars Oskar"]
[Result "0-1"]
[ECO "C50"]
[WhiteElo "2464"]
[BlackElo "2526"]
[Annotator "TA"]
[PlyCount "82"]
[EventDate "2022.07.08"]
[EventCountry "NOR"]
[SourceTitle "playchess.com"]
[Source "ChessBase"]
[SourceQuality "1"]
[TimeControl "40/5400+30:1800+30"]

{[%evp 10,82,14,30,29,21,12,-5,-6,-7,18,5,18,-9,-9,-36,-26,-23,-36,-27,-28,-56,-45,-61,-50,-68,-65,-72,-69,-146,-105,-100,-54,-166,-164,-156,-133,-189,-82,-167,-173,-152,-164,-193,-165,-179,-146,-204,-198,-201,-133,-126,-120,-142,-132,-203,-154,-149,-141,-145,-89,-92,-89,-850,-842,-3009,-2467,-2398,-2306,-29967,-29969,-29968,-12846,-6095,-2054]} 1. e4 {[%emt 0:00:02]} e5 {[%emt 0:00:10]} 2. Nf3 {[%emt 0:00:05]} Nc6 {[%emt 0:00:06]} 3. Bc4 {[%emt 0:00:06]} Nf6 {[%emt 0:00:08]} 4. d3 {[%emt 0:00:06]} Bc5 {[%emt 0:02:21]} 5. Bg5 {[%emt 0:00:59]} h6 {[%emt 0:00:21]} 6. Bh4 {[%emt 0:00:03]} Be7 {[%emt 0:00:52] C50: Hungarian Defence and Giuoco Pianissimo.} 7. Nc3 {[%emt 0:07:21]} d6 {[%emt 0:04:49][%cal Of6e4]} 8. Bxf6 {[%emt 0:01:43]} Bxf6 {[%emt 0:00:51] The position is equal.} 9. Nd5 {[%emt 0:00:44]} g6 {[%emt 0:09:30] [#]} 10. a4 $146 {[%emt 0:02:01]} ({Predecessor:} 10. Nxf6+ Qxf6 11. Qd2 Bg4 12. Ng1 O-O-O 13. h3 Be6 14. Bb3 d5 15. exd5 Bxd5 16. Bxd5 Rxd5 17. Ne2 {0-1 (56) Ziersch,H (2109)-Karpatchev,A (2533) Dresden 2006}) 10... Bg7 {[%emt 0:04:00]} 11. h4 {[%emt 0:06:08]} Ne7 {[%emt 0:07:15]} 12. Qd2 {[%emt 0:10:45]} Nxd5 {[%emt 0:11:35]} 13. Bxd5 {[%emt 0:00:27]} c6 {[%emt 0:05:07]} 14. Bb3 {[%emt 0:00:10]} O-O {[%emt 0:04:39]} 15. h5 {[%emt 0:17:15]} g5 {[%emt 0:00:32]} 16. Nh2 {[%emt 0:01:49]} d5 {[%emt 0:00:38]} 17. g4 {[%emt 0:02:16]} Be6 {[%emt 0:00:16]} 18. Rg1 {[%emt 0:00:39]} Qb6 {[%emt 0:02:18]} 19. exd5 {[%emt 0:09:53]} (19. Qe3 $15) 19... Bxd5 {[%emt 0:03:45]} 20. a5 {[%emt 0:05:55]} Qc7 {[%emt 0:03:44]} (20... Qd4 $17 {Hoping for ...e4.} 21. c3 Qc5 22. Bxd5 cxd5) 21. Nf1 {[%emt 0:06:24]} (21. Bxd5 $15 cxd5 22. Nf1) 21... Bxb3 $19 {[%emt 0:06:52]} 22. cxb3 {[%emt 0:00:01]} Rad8 {[%emt 0:00:13]} 23. Ra4 {[%emt 0:02:06]} (23. Qe2 $17 {was called for.}) 23... Qd7 {[%emt 0:10:10]} (23... f5 $19 {[%cal Oe5e4] Threatens to win with ...e4!} 24. Qe2 Qd7 25. gxf5 Rxf5) 24. Rg3 {[%emt 0:05:49]} (24. Ne3 $17) 24... f5 {[%emt 0:00:23]} 25. gxf5 {[%emt 0:00:07]} Rxf5 {[%emt 0:00:34]} 26. Re3 {[%emt 0:01:43]} Rf4 {[%emt 0:01:42]} 27. Rae4 {[%emt 0:02:06]} Qf7 {[%emt 0:00:47]} 28. Qc2 {[%emt 0:02:55]} (28. a6 $17) 28... Qxh5 {[%emt 0:03:28]} 29. a6 {[%emt 0:00:07]} Qf7 {[%emt 0:02:36]} 30. axb7 {[%emt 0:01:56]} Qxb7 {[%emt 0:00:12]} 31. Nd2 {[%emt 0:00:29]} Qf7 {[%emt 0:00:19] Black is more active.} 32. Nc4 {[%emt 0:03:33]} (32. f3 $17 {might work better.}) 32... Qh5 {[%emt 0:01:16]} 33. Qe2 {[%emt 0:03:50]} Qxe2+ {[%emt 0:08:36]} 34. Kxe2 {[%emt 0:00:02]} Rxe4 {[%emt 0:02:03]} (34... Rb8 $142 35. Nd2 Kf7) 35. Rxe4 {[%emt 0:00:25]} Kf7 {[%emt 0:00:17]} 36. Nxe5+ $2 {[%emt 0:01:01][%mdl 8192] This costs White the game.} (36. Na5 $17) 36... Bxe5 {[%emt 0:00:37]} 37. Rxe5 $17 {[%emt 0:00:03] [#] KR-KR} Re8 $1 {[%emt 0:00:15]} 38. Re3 {[%emt 0:02:32]} Rxe3+ {[%emt 0:00:24]} 39. fxe3 {[%emt 0:00:04]} c5 {[%emt 0:01:05]} 40. Kf3 {[%emt 0:00:00]} h5 {[%emt 0:00:00][%cal Bh6h5,Bh5h4][%mdl 32] ( -> ...h4)} 41. Ke4 {[%emt 0:10:33]} h4 {[%emt 0:03:19] Weighted Error Value: White=0.76/Black=0.10 (very precise)} 0-1

[Event "Norwegian Championship Elite 2022"]
[Site "Kongsvinger"]
[Date "2022.07.09"]
[Round "2.5"]
[White "Urkedal, Frode Olav Olsen"]
[Black "Ostenstad, Berge"]
[Result "1/2-1/2"]
[ECO "B46"]
[WhiteElo "2555"]
[BlackElo "2451"]
[Annotator "TA"]
[PlyCount "161"]
[EventDate "2022.07.08"]
[EventCountry "NOR"]
[SourceTitle "playchess.com"]
[Source "ChessBase"]
[SourceQuality "1"]
[TimeControl "40/5400+30:1800+30"]

{[%evp 15,161,43,33,42,31,36,30,43,42,33,47,38,65,31,60,25,67,0,0,0,44,17,45,43,44,42,45,37,46,42,85,8,34,32,31,-127,37,33,31,19,34,19,18,0,35,35,37,31,38,38,38,38,38,31,38,31,31,31,45,31,31,31,31,31,31,0,31,-39,23,0,0,0,38,0,0,-24,14,-16,0,-32,20,-24,14,14,30,-42,-29,-56,-70,-129,-112,-140,-128,-143,-143,-160,-186,-187,-200,-204,-195,-202,-177,-167,-178,-183,-177,-173,-173,-164,-131,-133,-118,-131,-134,-128,-125,-93,-17,-14,-14,-14,-12,-129,-129,-129,-129,-129,-120,-129,-24,-24,-24,-26,-24,-24,-20,-20,-20,-20,-20,-20,-20,-20,-20,-20,0,0]} 1. e4 {[%emt 0:00:06]} c5 {[%emt 0:00:44]} 2. Nf3 {[%emt 0:00:08]} e6 {[%emt 0:00:03]} 3. d4 {[%emt 0:00:07]} cxd4 {[%emt 0:00:04]} 4. Nxd4 {[%emt 0:00:05]} Nc6 {[%emt 0:05:14]} 5. Nc3 {[%emt 0:00:20]} a6 {[%emt 0:00:10]} 6. Nxc6 {[%emt 0:02:25]} bxc6 {[%emt 0:00:28]} 7. Bd3 {[%emt 0:05:30]} d5 {[%emt 0:01:14]} 8. O-O {[%emt 0:01:43]} Nf6 {[%emt 0:01:26]} 9. Qf3 {[%emt 0:02:14] B46: Sicilian: Taimanov: 5 Nc3 a6.} Be7 {[%emt 0:09:23]} 10. Qg3 {[%emt 0:11:21]} O-O {[%emt 0:00:46] 10...0-0 is better than 10...Nh5.} 11. Bh6 {[%emt 0:02:21][%csl Gh6][%cal Rg3g7] White has an edge.} Ne8 {[%emt 0:00:56] Threatens to win with ...Bh4.} 12. Bf4 {[%emt 0:00:20]} a5 {[%emt 0:08:11]} 13. Na4 {[%emt 0:05:32]} Ba6 {[%emt 0:02:28]} 14. Rfd1 {[%emt 0:10:34] [#]} Nd6 $146 {[%emt 0:24:51]} ({Predecessor:} 14... Bb5 15. Bxb5 cxb5 16. Nc3 b4 17. Na4 Rc8 18. exd5 exd5 19. Rd2 Rc6 20. Rad1 Nf6 21. Be5 {½-½ (21) Grigoriants,S (2565)-Mainka,R (2482) Germany 2008}) 15. Be5 {[%emt 0:11:04][%csl Ge5][%cal Rg3g7]} g6 {[%emt 0:01:24]} 16. Nc5 {[%emt 0:09:37]} (16. Rac1 $14) 16... Bxd3 $11 {[%emt 0:04:10]} 17. cxd3 {[%emt 0:03:01]} Ne8 {[%emt 0:13:58]} 18. Rac1 {[%emt 0:06:34]} Nf6 {[%emt 0:06:32]} 19. Na4 {[%emt 0:10:04]} Rc8 {[%emt 0:02:22]} 20. h3 {[%emt 0:02:17]} c5 {[%emt 0:02:36]} 21. b3 {[%emt 0:02:04]} Nd7 {[%emt 0:01:25]} 22. Bb2 {[%emt 0:02:29]} Rc6 {[%emt 0:03:13]} 23. Ba3 {[%emt 0:03:43] White is much more active. The black rooks are badly placed.} (23. exd5 $16 exd5 24. d4) 23... Bd6 {[%emt 0:01:15]} 24. Qf3 {[%emt 0:01:21]} d4 {[%emt 0:01:02]} 25. Rc2 $2 {[%emt 0:01:10] [#]} (25. Qe2 $14 {keeps the upper hand.}) 25... Qe7 $2 {[%emt 0:01:04]} (25... Ne5 $1 $17 {[%cal Re5f3]} 26. Qe2 c4 27. Bxd6 cxd3 28. Qxd3 Nxd3 29. Rxc6 Qa8) 26. Nb2 {[%emt 0:00:35]} Rfc8 {[%emt 0:00:27]} 27. Qe2 {[%emt 0:01:23]} Qf6 {[%emt 0:03:06]} 28. Nc4 {[%emt 0:01:13]} Bc7 {[%emt 0:00:11]} 29. Bc1 {[%emt 0:00:30]} e5 {[%emt 0:00:43]} (29... a4 $5) 30. Bd2 {[%emt 0:00:12]} (30. Qg4 {is interesting.} Qe7 31. Bh6 Ra8 32. Rb1) 30... Ra8 {[%emt 0:00:14]} 31. Nb2 {[%emt 0:01:32]} (31. Qg4 {looks sharper.} Qe7 32. Rb1 Kg7 33. Bg5) 31... Nf8 {[%emt 0:00:55]} 32. Rdc1 {[%emt 0:00:21]} Ne6 {[%emt 0:00:16]} 33. Rc4 $1 {[%emt 0:00:11]} h5 {[%emt 0:00:50]} 34. Ra4 {[%emt 0:01:33]} Rca6 {[%emt 0:00:59]} 35. Rc2 {[%emt 0:00:59]} Kg7 {[%emt 0:00:46]} 36. Nc4 {[%emt 0:00:23][%cal Bb2c4,Bc4d2,Bd2f3][%mdl 32]} Kg8 {[%emt 0:00:57]} 37. Bc1 {[%emt 0:01:17]} Kg7 {[%emt 0:00:57]} 38. Qd1 {[%emt 0:00:37]} Kg8 {[%emt 0:00:48]} 39. Nd2 {[%emt 0:00:34]} Bd6 {[%emt 0:01:22]} 40. Nf3 {[%emt 0:00:00]} Kg7 {[%emt 0:00:00]} 41. h4 {[%emt 0:02:52]} (41. Qf1 $14) 41... Qe7 {[%emt 0:02:51]} (41... Nf8 $1 $15) 42. Qd2 {[%emt 0:00:45]} Kg8 {[%emt 0:01:43]} 43. Qh6 {[%emt 0:03:55]} Qf8 {[%emt 0:03:08]} 44. Qd2 {[%emt 0:01:29]} Qe7 {[%emt 0:00:15]} 45. Qe1 {[%emt 0:01:05]} Qd8 {[%emt 0:00:58]} 46. Bd2 {[%emt 0:03:53]} Kg7 {[%emt 0:04:05]} 47. Bc1 {[%emt 0:00:35]} Kg8 {[%emt 0:00:26]} (47... Nf8 $15) 48. Re2 {[%emt 0:00:31]} Kg7 {[%emt 0:01:04]} (48... Nf8 $5 {[%cal Rf8d7]}) 49. g3 {[%emt 0:03:06]} Nf8 {[%emt 0:06:22][%cal Be6f8,Bf8d7,Bd7b6][%mdl 32]} 50. Qd2 {[%emt 0:01:21]} (50. Nd2 $1 $11) 50... Kg8 {[%emt 0:01:10]} (50... Qf6 {feels hotter.} 51. Qh6+ Kg8 52. Ng5 Qg7) 51. Qe1 {[%emt 0:09:58]} Nd7 $1 {[%emt 0:01:44]} 52. Bd2 {[%emt 0:00:01]} ({White should try} 52. Rc4 $15) 52... Qb6 {[%emt 0:01:09]} 53. Qc1 {[%emt 0:05:23]} Qb5 {[%emt 0:02:01]} 54. Qc4 {[%emt 0:00:15] [#]} Qb7 {[%emt 0:07:25]} 55. Ng5 {[%emt 0:01:09]} Nb6 $1 {[%emt 0:00:09][%csl LRa4,LRc4]} 56. Qb5 {[%emt 0:00:03][%cal Ra4a5]} Qa7 {[%emt 0:00:20]} 57. f4 {[%emt 0:00:07]} ({But not} 57. Ra3 $2 c4 58. Rxa5 Rxa5 $19) 57... Nxa4 {[%emt 0:00:16]} 58. Qxa4 {[%emt 0:00:03]} exf4 {[%emt 0:01:45]} 59. gxf4 {[%emt 0:00:22]} Be7 {[%emt 0:01:16]} 60. f5 {[%emt 0:00:09]} Qc7 {[%emt 0:01:39]} 61. Rg2 {[%emt 0:00:25] Prevents Qg3.} c4 {[%emt 0:00:32]} 62. bxc4 {[%emt 0:00:29]} Rb8 {[%emt 0:00:39] Inhibits Qb5. White must now prevent ...Rab6.} 63. Nf3 {[%emt 0:01:04]} Rb1+ {[%emt 0:01:12]} 64. Kf2 {[%emt 0:00:02]} Qc6 {[%emt 0:00:45] Against Qe8+} ({Don't take} 64... Qd8 65. c5 Rf6 66. Qc4 $14) 65. Qxc6 {[%emt 0:01:09]} Rxc6 {[%emt 0:00:03]} 66. fxg6 {[%emt 0:01:36]} Rxg6 {[%emt 0:00:38]} ({Don't play} 66... Rb2 67. gxf7+ Kh7 68. Ke1 $14) ({Black should play} 66... fxg6 $17 67. Kg3 a4) 67. Rxg6+ {[%emt 0:00:09]} fxg6 {[%emt 0:00:06]} 68. Bxa5 $17 {[%emt 0:00:10][%mdl 4096] Endgame KRB-KBN} Rb2+ {[%emt 0:00:29]} 69. Kg3 {[%emt 0:00:11]} (69. Kf1 $11) 69... Rxa2 {[%emt 0:00:04]} 70. Bb6 {[%emt 0:00:37]} Ra3 {[%emt 0:00:14]} 71. Bxd4 {[%emt 0:00:30]} Rxd3 {[%emt 0:00:12][%cal Oe7h4]} 72. Kf4 {[%emt 0:00:23]} Bxh4 {[%emt 0:01:05]} 73. Nxh4 $11 {[%emt 0:00:09] Hoping for Ke5.} Rxd4 {[%emt 0:00:04]} 74. Nxg6 {[%emt 0:00:12]} Rxc4 $17 {[%emt 0:00:58] KR-KN} 75. Kg5 {[%emt 0:00:30]} Rxe4 {[%emt 0:00:07]} 76. Kxh5 {[%emt 0:00:11] The position is equal.} Kg7 {[%emt 0:00:12]} 77. Kg5 {[%emt 0:00:08]} Re1 {[%emt 0:00:16] ...Rg1+ is the strong threat.} 78. Kf5 {[%emt 0:00:42]} Ra1 {[%emt 0:00:24]} 79. Ne5 {[%emt 0:00:15]} Ra5 {[%emt 0:00:46]} 80. Ke6 {[%emt 0:00:14]} Rxe5+ {[%emt 0:00:08]} 81. Kxe5 {[%emt 0:00:05] Black had all chances to win.  Weighted Error Value: White=0.24 (precise) /Black=0.19 (very precise)} 1/2-1/2

[Event "Norwegian Championship Elite 2022"]
[Site "Kongsvinger"]
[Date "2022.07.10"]
[Round "3.1"]
[White "Agdestein, Simen"]
[Black "Hammer, Jon Ludvig"]
[Result "1-0"]
[ECO "A29"]
[WhiteElo "2559"]
[BlackElo "2638"]
[Annotator "TA"]
[PlyCount "63"]
[EventDate "2022.07.08"]
[EventCountry "NOR"]
[SourceTitle "playchess.com"]
[Source "ChessBase"]
[SourceQuality "1"]
[TimeControl "40/5400+30:1800+30"]

{[%evp 18,63,3,14,23,6,17,0,0,0,0,0,0,0,0,0,18,8,31,0,68,63,56,66,86,58,252,256,688,680,680,678,657,643,764,727,1507,1512,1437,1388,2637,0,714,0,29976,29977,29990,29991]} 1. c4 {[%emt 0:00:05]} e5 {[%emt 0:00:11]} 2. Nc3 {[%emt 0:00:04]} Nf6 {[%emt 0:00:16]} 3. Nf3 {[%emt 0:00:10]} Nc6 {[%emt 0:00:11]} 4. g3 {[%emt 0:00:03]} Bb4 {[%emt 0:00:29]} 5. Bg2 {[%emt 0:00:12]} Bxc3 {[%emt 0:01:29]} 6. bxc3 {[%emt 0:00:16]} O-O {[%emt 0:00:16]} 7. O-O {[%emt 0:01:09]} e4 {[%emt 0:02:16]} 8. Ng5 {[%emt 0:02:57]} Re8 {[%emt 0:00:14]} 9. f3 {[%emt 0:00:33]} exf3 {[%emt 0:00:07]} 10. Nxf3 {[%emt 0:02:16]} Qe7 {[%emt 0:00:07] A29: English Opening: Four Knights Variation with 4 g3.} 11. e3 {[%emt 0:04:37]} Ne5 {[%emt 0:00:50]} 12. Nxe5 {[%emt 0:07:12]} Qxe5 {[%emt 0:00:48] The position is equal.} 13. Rb1 {[%emt 0:04:26]} c6 {[%emt 0:12:08] [#]} 14. Rf4 $146 {[%emt 0:23:41]} ({Predecessor:} 14. Ba3 d6 15. Qf3 Qe6 16. Qf4 c5 17. d4 Qxc4 18. dxc5 Qxa2 19. Ra1 Qc2 20. Rfc1 Qg6 21. cxd6 Re4 22. Bxe4 Be6 23. Bxg6 {1-0 (23) Baranyuk,A (2229)-Petkov,S (2407) ICCF email 2017}) 14... d6 {[%emt 0:05:33]} 15. Qf1 {[%emt 0:11:59]} Qe7 {[%emt 0:00:02]} 16. a4 {[%emt 0:04:19][%cal Ba2a4,Ba4a5][%mdl 32]} Ng4 {[%emt 0:16:45]} 17. a5 {[%emt 0:02:16][%cal Oa5a6]} a6 {[%emt 0:00:14]} 18. h3 {[%emt 0:04:42]} Nh6 {[%emt 0:13:10]} (18... Nf6 $11) 19. e4 $14 {[%emt 0:02:19] White is more active.} Qg5 {[%emt 0:03:11]} 20. Rf3 {[%emt 0:11:41]} Qxa5 {[%emt 0:09:57]} 21. d4 {[%emt 0:01:06]} f5 $2 {[%emt 0:02:02] Against g4} (21... Qh5 $14) 22. Bxh6 $18 {[%emt 0:02:29]} fxe4 {[%emt 0:02:53] [#]} (22... gxh6 23. exf5 Rf8) 23. Rf7 $1 {[%emt 0:03:38]} gxh6 {[%emt 0:01:10] [#]} 24. Bxe4 $1 {[%emt 0:00:35][%mdl 512]} Qg5 {[%emt 0:00:57] [#] ...Qe3+ is the strong threat.} 25. Kh2 $1 {[%emt 0:03:36]} h5 {[%emt 0:11:00]} (25... Bf5 26. Rxf5) 26. h4 {[%emt 0:00:47]} ({Weaker is} 26. Rc7 Re7 27. Rxe7 Qxe7 $11) 26... Qh6 {[%emt 0:00:04]} 27. Bxh7+ {[%emt 0:00:45]} ({Less strong is} 27. Rxh7 Qf8 $16) 27... Kh8 {[%emt 0:00:01]} 28. Bd3 {[%emt 0:00:59] Hoping for Rh7+.} Kg8 {[%emt 0:02:13]} 29. Bh7+ $40 {[%emt 0:00:03][%mdl 128] White attacks.} (29. Rf6 $142 Qg7 30. Rg6) 29... Kh8 {[%emt 0:00:05] [#]} 30. Bd3 {[%emt 0:00:03]} (30. Be4 $1 $18 {[%mdl 512]} Bh3 31. Qd3 Rxe4 32. Qxe4) 30... Kg8 $1 {[%emt 0:00:05]} 31. Rf6 {[%emt 0:01:27]} Qd2+ {[%emt 0:00:10]} 32. Kh1 {[%emt 0:00:13] Weighted Error Value: White=0.51/Black=0.51} 1-0

[Event "Norwegian Championship Elite 2022"]
[Site "Kongsvinger"]
[Date "2022.07.10"]
[Round "3.2"]
[White "Hauge, Lars Oskar"]
[Black "Ostmoe, Geir Sune Tallaksen"]
[Result "1/2-1/2"]
[ECO "B11"]
[WhiteElo "2526"]
[BlackElo "2483"]
[Annotator "TA"]
[PlyCount "68"]
[EventDate "2022.07.08"]
[EventCountry "NOR"]
[SourceTitle "playchess.com"]
[Source "ChessBase"]
[SourceQuality "1"]
[TimeControl "40/5400+30:1800+30"]

{[%evp 10,68,28,12,12,25,34,33,35,31,36,24,22,26,21,20,29,22,17,13,19,9,33,35,40,35,61,58,64,54,62,51,60,59,115,108,133,135,150,147,154,94,100,61,104,0,0,0,0,0,0,0,0,0,0,0,0,0,0,0,0]} 1. e4 {[%emt 0:00:02]} c6 {[%emt 0:00:15]} 2. Nf3 {[%emt 0:00:27]} d5 {[%emt 0:00:07]} 3. Nc3 {[%emt 0:00:05]} Bg4 {[%emt 0:01:29]} 4. h3 {[%emt 0:00:40]} Bxf3 {[%emt 0:00:08]} 5. Qxf3 {[%emt 0:00:10]} e6 {[%emt 0:00:35]} 6. Be2 {[%emt 0:00:51]} Nf6 {[%emt 0:04:19] B11: Caro-Kann: Two Knights Variation.} 7. O-O {[%emt 0:00:23]} dxe4 {[%emt 0:04:12]} 8. Nxe4 {[%emt 0:00:18]} Nxe4 {[%emt 0:00:19] White is slightly better.} 9. Qxe4 {[%emt 0:00:15]} Nd7 {[%emt 0:00:23]} 10. d4 {[%emt 0:01:59]} Nf6 {[%emt 0:01:34]} 11. Qe3 {[%emt 0:01:25]} Bd6 {[%emt 0:04:49] [#]} 12. g3 $5 $146 {[%emt 0:00:48][%mdl 8] New and interesting.} ({Predecessor:} 12. c4 O-O 13. b3 Qe7 14. Rd1 Rfd8 15. Bf3 Ba3 16. Qe5 Bxc1 17. Raxc1 Qa3 18. Rc2 {0-1 (57) Tomczak,J (2584)-Licznerski,L (2439) Kruszwica 2022}) 12... O-O {[%emt 0:02:24]} 13. Qf3 {[%emt 0:13:40]} Qe7 {[%emt 0:10:59]} 14. Re1 {[%emt 0:04:40]} Rad8 {[%emt 0:03:51]} 15. Bf1 {[%emt 0:05:48]} Rfe8 {[%emt 0:10:46]} 16. c3 {[%emt 0:01:03]} Nd5 {[%emt 0:04:48]} 17. Bd3 {[%emt 0:03:37]} Qf8 {[%emt 0:08:56]} 18. Bd2 {[%emt 0:06:43]} g6 {[%emt 0:02:16]} 19. Rad1 {[%emt 0:00:41]} e5 {[%emt 0:04:49]} 20. dxe5 {[%emt 0:06:30]} Bxe5 {[%emt 0:00:43]} 21. Bc4 {[%emt 0:01:42]} Nb6 {[%emt 0:13:17]} ({Black should play} 21... Bf6 $14) 22. Bb3 $16 {[%emt 0:02:28]} Bg7 {[%emt 0:00:29]} 23. Be3 {[%emt 0:01:44]} Rxd1 {[%emt 0:01:54]} 24. Rxd1 {[%emt 0:00:11][%cal Oe3c5] [#] aiming for Bc5!} ({Of course not} 24. Bxd1 $6 Nc4 $11) 24... Re5 {[%emt 0:01:05] Against Bc5} 25. Rd3 {[%emt 0:17:52]} (25. Bf4 $142) 25... Qe7 {[%emt 0:01:28]} 26. Qd1 {[%emt 0:01:03]} h5 {[%emt 0:00:55][%cal Og7h6]} 27. Rd8+ {[%emt 0:00:21]} (27. Kf1 $16) 27... Kh7 $11 {[%emt 0:00:10][%cal Ob6d5] The position is equal.} 28. Qd6 {[%emt 0:08:16]} Rxe3 {[%emt 0:05:47]} 29. fxe3 {[%emt 0:00:13]} Qxe3+ {[%emt 0:00:04]} 30. Kf1 {[%emt 0:01:25] Active counter play!} Nd5 {[%emt 0:01:34][%mdl 64] [#] Inhibits Qf4. Decoy} 31. Bxd5 {[%emt 0:00:34]} Qd3+ {[%emt 0:00:37]} 32. Kg2 {[%emt 0:03:57]} Qe2+ {[%emt 0:00:31]} 33. Kg1 {[%emt 0:01:06] Hoping for Bg2.} Qe1+ {[%emt 0:01:00]} 34. Kg2 $1 {[%emt 0:00:04] Strongly threatening Bf3.} Qe2+ {[%emt 0:00:03] Weighted Error Value: White=0.10 (very precise) /Black=0.09 (flawless)} 1/2-1/2

[Event "Norwegian Championship Elite 2022"]
[Site "Kongsvinger"]
[Date "2022.07.10"]
[Round "3.4"]
[White "Abdrlauf, Elham"]
[Black "Urkedal, Frode Olav Olsen"]
[Result "1/2-1/2"]
[ECO "A07"]
[WhiteElo "2466"]
[BlackElo "2555"]
[Annotator "TA"]
[PlyCount "76"]
[EventDate "2022.07.08"]
[EventCountry "NOR"]
[SourceTitle "playchess.com"]
[Source "ChessBase"]
[SourceQuality "1"]
[TimeControl "40/5400+30:1800+30"]

{[%evp 9,76,6,0,-13,8,-8,0,2,5,11,10,6,9,20,13,8,12,0,11,0,0,0,0,0,0,0,0,0,0,0,13,0,0,0,2,0,2,0,0,0,0,0,0,0,0,7,0,0,0,0,0,-7,-8,-8,0,0,0,0,0,0,0,0,0,0,0,0,0,0,0]} 1. Nf3 {[%emt 0:00:03]} d5 {[%emt 0:00:19]} 2. g3 {[%emt 0:00:06]} g6 {[%emt 0:00:22]} 3. Bg2 {[%emt 0:00:25]} Bg7 {[%emt 0:00:07]} 4. O-O {[%emt 0:00:05]} e5 {[%emt 0:00:25]} 5. d3 {[%emt 0:01:21]} Nc6 {[%emt 0:01:09] The position is equal.} 6. c4 {[%emt 0:02:36] A07: Réti Opening: New York and Capablanca Systems.} dxc4 {[%emt 0:01:31]} 7. dxc4 {[%emt 0:00:55]} Qxd1 {[%emt 0:04:26]} 8. Rxd1 {[%emt 0:00:04]} e4 {[%emt 0:02:20]} 9. Ng5 {[%emt 0:06:10]} f5 {[%emt 0:05:47]} 10. Nc3 {[%emt 0:01:33]} Bxc3 {[%emt 0:03:05]} 11. bxc3 {[%emt 0:00:10]} h6 {[%emt 0:02:26]} 12. Nh3 {[%emt 0:00:07]} g5 {[%emt 0:03:52] Against Nf4} 13. f3 {[%emt 0:04:48]} Nf6 {[%emt 0:05:18]} 14. Nf2 {[%emt 0:09:42][%cal Rf3e4]} Bd7 {[%emt 0:11:00]} 15. fxe4 {[%emt 0:07:59] [#]} Nxe4 $146 {[%emt 0:00:14]} ({Predecessor:} 15... fxe4 16. Nxe4 Nxe4 17. Bxe4 O-O-O 18. Bf3 Rde8 19. Rb1 g4 20. Bxc6 Bxc6 21. Rb2 h5 {½-½ (68) Owens,J (2113)-Burmeister,F ICCF email 2016}) 16. Nxe4 {[%emt 0:02:54]} fxe4 {[%emt 0:00:16]} 17. Be3 {[%emt 0:13:27]} O-O-O {[%emt 0:03:00]} 18. Bd4 {[%emt 0:01:35]} ({Don't play} 18. Bxe4 Rhe8 19. Bxc6 Rxe3 $15) 18... Nxd4 {[%emt 0:04:48]} 19. Rxd4 {[%emt 0:05:22]} Bc6 {[%emt 0:06:51]} 20. Rf1 {[%emt 0:10:02]} Rde8 {[%emt 0:22:33]} 21. Rf6 {[%emt 0:08:57]} Kb8 {[%emt 0:01:10]} 22. Bh3 {[%emt 0:02:43]} a6 {[%emt 0:01:55]} 23. Be6 {[%emt 0:02:05]} Ref8 {[%emt 0:08:51]} 24. Rxf8+ {[%emt 0:01:34]} Rxf8 {[%emt 0:00:04]} 25. Bd5 {[%emt 0:00:32]} Bxd5 {[%emt 0:02:36]} 26. cxd5 $11 {[%emt 0:00:06][%mdl 4096] Endgame KR-KR} e3 {[%emt 0:02:28]} 27. Re4 {[%emt 0:01:19]} Rd8 {[%emt 0:01:29]} 28. c4 {[%emt 0:01:23]} b5 {[%emt 0:00:06]} 29. cxb5 {[%emt 0:03:31]} axb5 {[%emt 0:00:02]} 30. Re5 {[%emt 0:01:09]} Kb7 {[%emt 0:00:19]} 31. Kg2 {[%emt 0:07:36]} Ra8 {[%emt 0:03:23]} 32. d6 {[%emt 0:00:58]} cxd6 {[%emt 0:03:42]} 33. Rxb5+ {[%emt 0:00:08]} Kc6 {[%emt 0:00:04]} 34. Rb3 {[%emt 0:01:43]} Rxa2 {[%emt 0:00:08]} 35. Kf3 {[%emt 0:00:34]} h5 {[%emt 0:01:17]} 36. Rb8 {[%emt 0:01:22]} Ra5 {[%emt 0:00:24]} 37. h3 {[%emt 0:01:32]} Rf5+ {[%emt 0:00:38]} 38. Kxe3 {[%emt 0:00:05]} Re5+ {[%emt 0:00:05] An uneventful encounter.  Weighted Error Value: White=0.02 (flawless) /Black=0.01 (flawless)} 1/2-1/2